fUSD/lending_fUSD_20250108
["ID","MTS","AMOUNT","RATE_DAILY","PERIOD"]
[348126173,1736343032316,-150.0,9.247e-05,2]
[348126174,1736343032325,-150.0,9.247e-05,2]
[348126175,1736343032334,-150.0,9.247e-05,2]
[348126176,1736343032344,-150.0,9.349e-05,2]
[348126177,1736343032353,-150.0,9.452e-05,2]
[348126178,1736343032363,-150.0,9.452e-05,2]
[348126179,1736343032374,-121.65842254,9.452e-05,2]
[348126180,1736343032386,-28.34157746,9.452e-05,2]
[348126181,1736343032396,-158.756,9.5e-05,2]
[348126182,1736343032408,-78.8447345,9.555e-05,2]
[348126183,1736343032419,-71.1552655,9.555e-05,2]
[348126184,1736343032428,-150.0,9.658e-05,2]
[348126185,1736343032437,-150.0,9.658e-05,2]
[348126186,1736343032446,-150.0,9.658e-05,2]
[348126187,1736343032455,-300.0,9.699e-05,2]
[348126188,1736343032464,-504.38,9.7e-05,2]
[348126189,1736343032474,-495.42,9.7e-05,2]
[348126190,1736343032483,-505.3,9.7e-05,2]
[348126191,1736343032493,-7588.0447345,9.718e-05,2]
[348126192,1736343032516,-298.64016297,9.718e-05,2]
[348126193,1736343032558,-303.46773847,9.718e-05,2]
[348126194,1736343032575,-21809.84736406,9.718e-05,2]
[348126195,1736343032585,-150.0,9.76e-05,2]
[348126196,1736343032594,-150.0,9.798e-05,2]
[348126197,1736343032604,-493.34,9.799e-05,2]
[348126198,1736343032613,-490.36,9.799e-05,2]
[348126199,1736343032622,-166.649,9.799e-05,2]
[348126200,1736343032632,-1538.37,9.799e-05,2]
[348126201,1736343032641,-500.0,9.799e-05,2]
[348126202,1736343032653,-3001.77,9.799e-05,2]
[348126203,1736343032662,-500.0,9.799e-05,2]
[348126204,1736343032672,-500.0,9.799e-05,2]
[348126205,1736343032682,-500.0,9.799e-05,2]
[348126206,1736343032692,-500.0,9.799e-05,2]
[348126207,1736343032702,-500.0,9.799e-05,2]
[348126208,1736343032711,-500.0,9.799e-05,2]
[348126209,1736343032720,-518.3,9.799e-05,2]
[348126210,1736343032729,-500.0,9.799e-05,2]
[348126211,1736343032738,-500.0,9.799e-05,2]
[348126212,1736343032747,-587.59,9.799e-05,2]
[348126213,1736343032756,-500.0,9.799e-05,2]
[348126214,1736343032770,-500.0,9.799e-05,2]
[348126215,1736343032779,-500.0,9.799e-05,2]
[348126216,1736343032789,-500.0,9.799e-05,2]
[348126217,1736343032798,-564.74,9.799e-05,2]
[348126218,1736343032807,-500.0,9.799e-05,2]
[348126219,1736343032816,-500.0,9.799e-05,2]
[348126220,1736343032825,-500.0,9.799e-05,2]
[348126221,1736343032835,-500.0,9.799e-05,2]
[348126222,1736343032844,-563.38,9.799e-05,2]
[348126223,1736343032854,-500.0,9.799e-05,2]
[348126224,1736343032863,-500.0,9.799e-05,2]
[348126225,1736343032872,-500.0,9.799e-05,2]
[348126226,1736343032882,-991.75,9.799e-05,2]
[348126227,1736343032891,-82.75451284,9.799e-05,2]
[348126229,1736343032906,-417.24548716,9.799e-05,2]
[348126231,1736343032915,-82.75451284,9.799e-05,2]
[348126233,1736343032926,-417.24548716,9.799e-05,2]
[348126235,1736343032935,-500.0,9.799e-05,2]
[348126237,1736343032945,-500.0,9.799e-05,2]
[348126239,1736343032954,-500.0,9.799e-05,2]
[348126241,1736343032963,-258.84570567,9.799e-05,2]
[348126244,1736343032978,-241.15429433,9.799e-05,2]
[348126246,1736343032987,-500.0,9.799e-05,2]
[348126248,1736343032996,-258.83770567,9.799e-05,2]
[348126253,1736343033022,-241.16229433,9.799e-05,2]
[348126255,1736343033032,-500.0,9.799e-05,2]
[348126281,1736343033255,-500.0,9.799e-05,2]
[348126283,1736343033265,-500.0,9.799e-05,2]
[348126285,1736343033275,-702.19,9.799e-05,2]
[348126287,1736343033284,-500.0,9.799e-05,2]
[348126289,1736343033294,-500.0,9.799e-05,2]
[348126291,1736343033303,-500.0,9.799e-05,2]
[348126293,1736343033313,-500.0,9.799e-05,2]
[348126295,1736343033323,-500.0,9.799e-05,2]
[348126297,1736343033332,-500.0,9.799e-05,2]
[348126299,1736343033342,-500.0,9.799e-05,2]
[348126301,1736343033351,-773.84,9.799e-05,2]
[348126303,1736343033361,-557.97,9.799e-05,2]
[348126305,1736343033370,-698.97,9.799e-05,2]
[348126307,1736343033379,-757.57,9.799e-05,2]
[348126309,1736343033388,-7.57836172,9.799e-05,2]
[348126341,1736343033705,-565.16349303,9.799e-05,2]
[348126342,1736343033716,-500.0,9.799e-05,2]
[348126343,1736343033725,-181.21650697,9.799e-05,2]
[348126344,1736343033737,-318.78349303,9.799e-05,2]
[348126345,1736343033751,-500.0,9.799e-05,2]
[348126346,1736343033761,-500.0,9.799e-05,2]
[348126347,1736343033770,-473.54350697,9.799e-05,2]
[348126348,1736343033783,-26.45649303,9.799e-05,2]
[348126349,1736343033792,-500.0,9.799e-05,2]
[348126350,1736343033802,-500.0,9.799e-05,2]
[348126351,1736343033811,-200.67882677,9.799e-05,2]
[348126356,1736343038248,-299.32117323,9.799e-05,2]
[348126357,1736343038261,-288.35085485,9.799e-05,2]
[348126358,1736343038275,-500.0,9.799e-05,2]
[348126359,1736343038288,-500.0,9.799e-05,2]
[348126360,1736343038301,-500.0,9.799e-05,2]
[348126361,1736343038312,-568.03,9.799e-05,2]
[348126362,1736343038323,-602.22,9.799e-05,2]
[348126363,1736343038335,-500.0,9.799e-05,2]
[348126364,1736343038347,-500.0,9.799e-05,2]
[348126365,1736343038362,-530.24,9.799e-05,2]
[348126366,1736343038374,-500.0,9.799e-05,2]
[348126367,1736343038384,-500.0,9.799e-05,2]
[348126368,1736343038395,-500.0,9.799e-05,2]
[348126369,1736343038408,-610.89,9.799e-05,2]
[348126370,1736343038420,-500.0,9.799e-05,2]
[348126371,1736343038433,-721.25,9.799e-05,2]
[348126372,1736343038444,-500.0,9.799e-05,2]
[348126373,1736343038454,-688.9,9.799e-05,2]
[348126374,1736343038465,-500.0,9.799e-05,2]
[348126375,1736343038477,-500.0,9.799e-05,2]
[348126376,1736343038491,-500.0,9.799e-05,2]
[348126377,1736343038503,-548.29798356,9.799e-05,2]
[348126378,1736343038518,-668.99201644,9.799e-05,2]
[348126379,1736343038529,-500.0,9.799e-05,2]
[348126380,1736343038540,-150.0,9.863e-05,2]
[348126381,1736343038552,-150.0,9.863e-05,2]
[348126382,1736343038564,-150.0,9.863e-05,2]
[348126383,1736343038575,-1257.8425,9.899e-05,2]
[348126384,1736343038586,-500.0,9.9e-05,2]
[348126385,1736343038597,-428.617619,9.914e-05,2]
[348126386,1736343038608,-428.617619,9.952e-05,2]
[348126387,1736343038620,-150.0,9.966e-05,2]
[348126388,1736343038633,-3915.49817599,9.972e-05,2]
[348126390,1736343038644,-14087.6368852,9.972e-05,2]
[348126392,1736343038659,-4200.0,9.972e-05,2]
[348126395,1736343038674,-3103.57100234,9.972e-05,2]
[348126403,1736343038739,-10468.1428125,9.972e-05,2]
[348126445,1736343040276,-707.37000039,9.972e-05,2]
[348126446,1736343040335,-305.91068178,9.972e-05,2]
[348126447,1736343040350,-819.30610051,9.972e-05,2]
[348126448,1736343040361,-533.93180171,9.972e-05,2]
[348126449,1736343040396,-226467.10008732,9.972e-05,2]
[348126450,1736343040409,-152.82128607,9.973e-05,2]
[348126451,1736343040421,-500.0,9.973e-05,2]
[348126452,1736343040433,-151.82162232,9.973e-05,2]
[348126453,1736343040444,-151.82406185,9.973e-05,2]
[348126454,1736343040455,-500.0,9.973e-05,2]
[348126455,1736343040467,-251.69936221,9.973e-05,2]
[348126456,1736343040478,-151.82527232,9.973e-05,2]
[348126457,1736343040490,-156.81635837,9.973e-05,2]
[348126458,1736343040502,-150.82279465,9.973e-05,2]
[348126459,1736343040513,-151.82221223,9.973e-05,2]
[348126460,1736343040524,-3915.49817599,9.973e-05,2]
[348126461,1736343040535,-10046.67122955,9.973e-05,2]
[348126462,1736343040547,-227001.03188903,9.975e-05,2]
[348126463,1736343040558,-339.49783869,9.975e-05,2]
[348126464,1736343040570,-339.49783869,9.976e-05,2]
[348126465,1736343040581,-33691.93748272,9.976e-05,2]
[348126466,1736343040593,-2033.60747845,9.976e-05,2]
[348126467,1736343040604,-339.49783869,9.977e-05,2]
[348126468,1736343040616,-2033.60747845,9.978e-05,2]
[348126469,1736343040628,-227001.03188903,9.978e-05,2]
[348126471,1736343040639,-3915.49817599,9.981e-05,2]
[348126473,1736343040650,-339.49783869,9.982e-05,2]
[348126475,1736343040663,-33691.93748272,9.983e-05,2]
[348126476,1736343040674,-10046.67122955,9.984e-05,2]
[348126477,1736343040685,-10046.67122955,9.985e-05,2]
[348126479,1736343040696,-339.49783869,9.985e-05,2]
[348126481,1736343040707,-33691.93748272,9.985e-05,2]
[348126483,1736343040719,-2033.60747845,9.985e-05,2]
[348126485,1736343040730,-200.0,9.986e-05,2]
[348126487,1736343040745,-10046.67122955,9.987e-05,2]
[348126490,1736343040758,-33691.93748272,9.988e-05,2]
[348126492,1736343040769,-47475.63015636,9.988e-05,2]
[348126494,1736343040780,-428.617619,9.99e-05,2]
[348126496,1736343040792,-10046.67122955,9.99e-05,2]
[348126499,1736343040804,-227001.03188903,9.992e-05,2]
[348126500,1736343040816,-3915.49817599,9.992e-05,2]
[348126501,1736343040827,-10046.67122955,9.992e-05,2]
[348126502,1736343040836,-3915.49817599,9.993e-05,2]
[348126503,1736343040846,-227001.03188903,9.994e-05,2]
[348126504,1736343040855,-227001.03188903,9.994e-05,2]
[348126505,1736343040864,-3915.49817599,9.996e-05,2]
[348126506,1736343040874,-2033.60747845,9.997e-05,2]
[348126507,1736343040883,-2033.60747845,9.997e-05,2]
[348126508,1736343040893,-500.0,9.997e-05,2]
[348126509,1736343041183,-894.93,9.997e-05,2]
[348126510,1736343041207,-2476.18,9.997e-05,2]
[348126511,1736343041224,-1339.35,9.997e-05,2]
[348126512,1736343041234,-576.01,9.997e-05,2]
[348126513,1736343041243,-609.01,9.997e-05,2]
[348126514,1736343041253,-788.95,9.997e-05,2]
[348126515,1736343041261,-2119.12,9.997e-05,2]
[348126516,1736343041271,-589.33,9.997e-05,2]
[348126517,1736343041280,-700.42,9.997e-05,2]
[348126518,1736343041289,-500.0,9.997e-05,2]
[348126519,1736343041298,-2182.32,9.997e-05,2]
[348126520,1736343041309,-5278.11,9.997e-05,2]
[348126521,1736343041319,-1090.07,9.997e-05,2]
[348126522,1736343041328,-500.0,9.997e-05,2]
[348126523,1736343041338,-801.74,9.997e-05,2]
[348126524,1736343041347,-841.95,9.997e-05,2]
[348126525,1736343041356,-500.0,9.997e-05,2]
[348126526,1736343041366,-555.46,9.997e-05,2]
[348126527,1736343041375,-1664.68,9.997e-05,2]
[348126528,1736343041384,-1841.02,9.997e-05,2]
[348126529,1736343041394,-500.0,9.997e-05,2]
[348126530,1736343041404,-3280.98,9.997e-05,2]
[348126531,1736343041415,-500.0,9.997e-05,2]
[348126532,1736343041425,-1264.09,9.997e-05,2]
[348126533,1736343041435,-1443.58,9.997e-05,2]
[348126534,1736343041444,-873.67,9.997e-05,2]
[348126535,1736343041454,-500.0,9.997e-05,2]
[348126536,1736343041463,-718.78,9.997e-05,2]
[348126537,1736343041472,-791.74,9.997e-05,2]
[348126538,1736343041482,-585.05,9.997e-05,2]
[348126539,1736343041491,-686.87,9.997e-05,2]
[348126540,1736343041501,-2510.03,9.997e-05,2]
[348126541,1736343041510,-1605.06,9.997e-05,2]
[348126542,1736343041520,-500.0,9.997e-05,2]
[348126543,1736343041529,-1625.82,9.997e-05,2]
[348126544,1736343041539,-500.0,9.997e-05,2]
[348126545,1736343041549,-529.64,9.997e-05,2]
[348126546,1736343041560,-1063.77,9.997e-05,2]
[348126547,1736343041569,-1344.19,9.997e-05,2]
[348126548,1736343041578,-500.0,9.997e-05,2]
[348126549,1736343041587,-500.0,9.997e-05,2]
[348126550,1736343041597,-500.0,9.997e-05,2]
[348126551,1736343041607,-1668.18,9.997e-05,2]
[348126552,1736343041616,-500.0,9.997e-05,2]
[348126553,1736343041625,-500.0,9.997e-05,2]
[348126554,1736343041634,-500.0,9.997e-05,2]
[348126555,1736343041644,-2230.31,9.997e-05,2]
[348126556,1736343041653,-570.51,9.997e-05,2]
[348126557,1736343041663,-686.22,9.997e-05,2]
[348126558,1736343041672,-929.77,9.997e-05,2]
[348126559,1736343041681,-516.31,9.997e-05,2]
[348126560,1736343041691,-500.0,9.997e-05,2]
[348126561,1736343041701,-500.0,9.997e-05,2]
[348126562,1736343041710,-500.84,9.997e-05,2]
[348126563,1736343041719,-500.0,9.997e-05,2]
[348126564,1736343041729,-33691.93748272,9.997e-05,2]
[348126565,1736343041740,-502.44821323,9.998e-05,2]
[348126566,1736343041749,-500.41500721,9.998e-05,2]
[348126567,1736343041760,-1248.72,9.998e-05,2]
[348126568,1736343041769,-765.71,9.998e-05,2]
[348126569,1736343041779,-2136.91,9.998e-05,2]
[348126570,1736343041789,-500.0,9.998e-05,2]
[348126571,1736343041799,-500.0,9.998e-05,2]
[348126572,1736343041809,-1016.12,9.998e-05,2]
[348126573,1736343041822,-3351.27,9.998e-05,2]
[348126574,1736343041832,-500.0,9.998e-05,2]
[348126575,1736343041841,-1506.95,9.998e-05,2]
[348126576,1736343041850,-3396.95,9.998e-05,2]
[348126577,1736343041861,-444.24810918,9.998e-05,2]
[348126578,1736343041871,-500.0,9.998e-05,2]
[348126579,1736343041880,-500.0,9.998e-05,2]
[348126580,1736343041889,-282.64079148,9.998e-05,2]
[348126581,1736343041898,-544.01,9.998e-05,2]
[348126582,1736343041908,-500.0,9.998e-05,2]
[348126583,1736343041917,-500.0,9.998e-05,2]
[348126584,1736343041927,-500.0,9.998e-05,2]
[348126585,1736343041937,-617.22,9.998e-05,2]
[348126586,1736343041946,-500.0,9.998e-05,2]
[348126587,1736343041955,-590.58,9.998e-05,2]
[348126588,1736343041964,-507.1,9.998e-05,2]
[348126589,1736343041974,-500.0,9.998e-05,2]
[348126590,1736343041983,-500.0,9.998e-05,2]
[348126591,1736343041992,-520.91,9.998e-05,2]
[348126592,1736343042002,-500.0,9.998e-05,2]
[348126593,1736343042011,-500.0,9.998e-05,2]
[348126594,1736343042021,-500.0,9.998e-05,2]
[348126595,1736343042030,-500.0,9.998e-05,2]
[348126596,1736343042040,-500.0,9.998e-05,2]
[348126597,1736343042049,-500.0,9.998e-05,2]
[348126598,1736343042058,-872.58,9.998e-05,2]
[348126599,1736343042068,-500.0,9.998e-05,2]
[348126600,1736343042077,-500.0,9.998e-05,2]
[348126601,1736343042086,-646.98,9.998e-05,2]
[348126602,1736343042096,-584.2,9.998e-05,2]
[348126603,1736343042105,-500.0,9.998e-05,2]
[348126604,1736343042114,-500.0,9.998e-05,2]
[348126605,1736343042123,-500.0,9.998e-05,2]
[348126606,1736343042133,-500.0,9.998e-05,2]
[348126607,1736343042143,-516.04,9.998e-05,2]
[348126608,1736343042153,-500.0,9.998e-05,2]
[348126609,1736343042165,-500.0,9.998e-05,2]
[348126610,1736343042175,-500.0,9.998e-05,2]
[348126611,1736343042184,-500.0,9.998e-05,2]
[348126612,1736343042193,-500.0,9.998e-05,2]
[348126613,1736343042203,-1462.85,9.998e-05,2]
[348126614,1736343042212,-500.0,9.998e-05,2]
[348126615,1736343042220,-670.01,9.998e-05,2]
[348126616,1736343042230,-500.0,9.998e-05,2]
[348126617,1736343042239,-1484.66,9.998e-05,2]
[348126618,1736343042248,-500.0,9.998e-05,2]
[348126619,1736343042258,-500.0,9.998e-05,2]
[348126620,1736343042269,-500.0,9.998e-05,2]
[348126621,1736343042280,-500.0,9.998e-05,2]
[348126622,1736343042289,-624.46,9.998e-05,2]
[348126623,1736343042299,-732.18,9.998e-05,2]
[348126624,1736343042308,-500.0,9.998e-05,2]
[348126625,1736343042317,-500.0,9.998e-05,2]
[348126626,1736343042326,-695.78,9.998e-05,2]
[348126627,1736343042336,-500.0,9.998e-05,2]
[348126628,1736343042345,-500.0,9.998e-05,2]
[348126629,1736343042354,-520.85,9.998e-05,2]
[348126630,1736343042362,-536.92,9.998e-05,2]
[348126631,1736343042373,-500.0,9.998e-05,2]
[348126632,1736343042383,-500.0,9.998e-05,2]
[348126633,1736343042393,-500.0,9.998e-05,2]
[348126634,1736343042402,-500.0,9.998e-05,2]
[348126635,1736343042413,-500.0,9.998e-05,2]
[348126636,1736343042423,-500.0,9.998e-05,2]
[348126637,1736343042432,-764.01,9.998e-05,2]
[348126638,1736343042442,-500.0,9.998e-05,2]
[348126639,1736343042451,-500.0,9.998e-05,2]
[348126640,1736343042460,-500.0,9.998e-05,2]
[348126641,1736343042471,-500.0,9.998e-05,2]
[348126642,1736343042480,-1145.44,9.998e-05,2]
[348126643,1736343042489,-500.0,9.998e-05,2]
[348126644,1736343042498,-817.64,9.998e-05,2]
[348126645,1736343042507,-500.0,9.998e-05,2]
[348126646,1736343042516,-519.71,9.998e-05,2]
[348126647,1736343042526,-512.79,9.998e-05,2]
[348126648,1736343042535,-1414.23,9.998e-05,2]
[348126649,1736343042544,-7929.47,9.998e-05,2]
[348126650,1736343042553,-611.78,9.998e-05,2]
[348126651,1736343042563,-500.0,9.998e-05,2]
[348126652,1736343042572,-547.13,9.998e-05,2]
[348126653,1736343042581,-500.0,9.998e-05,2]
[348126654,1736343042590,-500.0,9.998e-05,2]
[348126655,1736343042599,-1161.6,9.998e-05,2]
[348126656,1736343042607,-500.0,9.998e-05,2]
[348126657,1736343042617,-936.694682,9.998e-05,2]
[348126658,1736343042626,-500.0,9.998e-05,2]
[348126659,1736343042636,-158.601536,9.998e-05,2]
[348126660,1736343042645,-500.0,9.998e-05,2]
[348126661,1736343042654,-156.313772,9.998e-05,2]
[348126662,1736343042666,-546.4,9.998e-05,2]
[348126663,1736343042675,-500.0,9.998e-05,2]
[348126664,1736343042684,-2432.84,9.998e-05,2]
[348126665,1736343042694,-500.0,9.998e-05,2]
[348126666,1736343042703,-1048.165828,9.998e-05,2]
[348126667,1736343042712,-500.0,9.998e-05,2]
[348126668,1736343042722,-4466.67,9.998e-05,2]
[348126669,1736343042731,-500.0,9.998e-05,2]
[348126670,1736343042744,-500.0,9.998e-05,2]
[348126671,1736343042753,-703.86,9.998e-05,2]
[348126672,1736343042763,-500.0,9.998e-05,2]
[348126673,1736343042772,-619.14,9.998e-05,2]
[348126674,1736343042782,-545.76,9.998e-05,2]
[348126675,1736343042791,-1355.89,9.998e-05,2]
[348126676,1736343042801,-574.42,9.998e-05,2]
[348126677,1736343042810,-1569.35,9.998e-05,2]
[348126678,1736343042819,-500.0,9.998e-05,2]
[348126679,1736343042829,-500.0,9.998e-05,2]
[348126680,1736343042839,-500.0,9.998e-05,2]
[348126681,1736343042848,-500.0,9.998e-05,2]
[348126682,1736343042858,-500.0,9.998e-05,2]
[348126683,1736343042868,-500.0,9.998e-05,2]
[348126684,1736343042877,-504.08,9.998e-05,2]
[348126685,1736343042887,-500.0,9.998e-05,2]
[348126686,1736343042896,-500.0,9.998e-05,2]
[348126687,1736343042905,-500.0,9.998e-05,2]
[348126688,1736343042920,-3586.32,9.998e-05,2]
[348126689,1736343042930,-500.0,9.998e-05,2]
[348126690,1736343042939,-500.0,9.998e-05,2]
[348126691,1736343042949,-3320.76,9.998e-05,2]
[348126692,1736343042959,-500.0,9.998e-05,2]
[348126693,1736343042968,-500.0,9.998e-05,2]
[348126694,1736343042977,-500.0,9.998e-05,2]
[348126695,1736343042987,-500.0,9.998e-05,2]
[348126696,1736343042997,-500.0,9.998e-05,2]
[348126697,1736343043007,-500.0,9.998e-05,2]
[348126699,1736343043016,-2801.6,9.998e-05,2]
[348126700,1736343043026,-3508.22,9.998e-05,2]
[348126701,1736343043035,-1375.13,9.998e-05,2]
[348126702,1736343043045,-539.35,9.998e-05,2]
[348126703,1736343043054,-500.0,9.998e-05,2]
[348126704,1736343043064,-500.0,9.998e-05,2]
[348126705,1736343043073,-500.0,9.998e-05,2]
[348126706,1736343043082,-500.0,9.998e-05,2]
[348126707,1736343043092,-500.0,9.998e-05,2]
[348126708,1736343043101,-500.0,9.998e-05,2]
[348126709,1736343043111,-3402.85,9.998e-05,2]
[348126710,1736343043121,-500.0,9.998e-05,2]
[348126711,1736343043130,-500.0,9.998e-05,2]
[348126712,1736343043140,-1972.1,9.998e-05,2]
[348126713,1736343043152,-500.0,9.998e-05,2]
[348126715,1736343043164,-500.0,9.998e-05,2]
[348126717,1736343043174,-500.0,9.998e-05,2]
[348126718,1736343043183,-910.69,9.998e-05,2]
[348126719,1736343043193,-500.0,9.998e-05,2]
[348126720,1736343043202,-500.0,9.998e-05,2]
[348126721,1736343043212,-500.0,9.998e-05,2]
[348126722,1736343043222,-500.0,9.998e-05,2]
[348126723,1736343043232,-2033.60747845,9.999e-05,2]
[348126724,1736343043242,-500.0,9.999e-05,2]
[348126725,1736343043251,-500.0,9.999e-05,2]
[348126726,1736343043261,-500.0,9.999e-05,2]
[348126727,1736343043271,-500.0,9.999e-05,2]
[348126728,1736343043280,-500.0,9.999e-05,2]
[348126729,1736343043290,-500.0,9.999e-05,2]
[348126731,1736343043300,-590.44,9.999e-05,2]
[348126734,1736343043309,-500.0,9.999e-05,2]
[348126736,1736343043319,-582.68,9.999e-05,2]
[348126737,1736343043328,-500.0,9.999e-05,2]
[348126738,1736343043338,-500.0,9.999e-05,2]
[348126739,1736343043348,-500.0,9.999e-05,2]
[348126740,1736343043357,-500.0,9.999e-05,2]
[348126741,1736343043367,-500.0,9.999e-05,2]
[348126742,1736343043377,-500.0,9.999e-05,2]
[348126743,1736343043386,-500.0,9.999e-05,2]
[348126744,1736343043396,-535.94,9.999e-05,2]
[348126745,1736343043406,-500.0,9.999e-05,2]
[348126746,1736343043419,-500.0,9.999e-05,2]
[348126747,1736343043429,-500.0,9.999e-05,2]
[348126748,1736343043439,-161.24552455,9.999e-05,2]
[348126749,1736343043449,-500.0,9.999e-05,2]
[348126750,1736343043459,-500.0,9.999e-05,2]
[348126751,1736343043469,-1247.91,9.999e-05,2]
[348126752,1736343043478,-500.0,9.999e-05,2]
[348126753,1736343043487,-564.1,9.999e-05,2]
[348126754,1736343043497,-500.0,9.999e-05,2]
[348126755,1736343043506,-500.0,9.999e-05,2]
[348126756,1736343043516,-500.0,9.999e-05,2]
[348126757,1736343043525,-500.0,9.999e-05,2]
[348126758,1736343043534,-1240.5,9.999e-05,2]
[348126759,1736343043544,-500.0,9.999e-05,2]
[348126760,1736343043554,-500.0,9.999e-05,2]
[348126761,1736343043563,-500.0,9.999e-05,2]
[348126762,1736343043573,-500.0,9.999e-05,2]
[348126763,1736343043582,-500.0,9.999e-05,2]
[348126764,1736343043591,-500.0,9.999e-05,2]
[348126765,1736343043601,-500.0,9.999e-05,2]
[348126766,1736343043610,-500.0,9.999e-05,2]
[348126767,1736343043619,-558.3,9.999e-05,2]
[348126768,1736343043629,-500.0,9.999e-05,2]
[348126769,1736343043638,-2973.58,9.999e-05,2]
[348126770,1736343043647,-511.46,9.999e-05,2]
[348126772,1736343043657,-500.0,9.999e-05,2]
[348126774,1736343043669,-500.0,9.999e-05,2]
[348126775,1736343043678,-500.0,9.999e-05,2]
[348126776,1736343043688,-500.0,9.999e-05,2]
[348126777,1736343043697,-500.0,9.999e-05,2]
[348126778,1736343043707,-500.0,9.999e-05,2]
[348126780,1736343043716,-500.0,9.999e-05,2]
[348126782,1736343043725,-500.0,9.999e-05,2]
[348126784,1736343043735,-6093.87,9.999e-05,2]
[348126786,1736343043748,-500.0,9.999e-05,2]
[348126788,1736343043757,-500.0,9.999e-05,2]
[348126790,1736343043767,-510.8,9.999e-05,2]
[348126792,1736343043776,-500.0,9.999e-05,2]
[348126793,1736343043786,-564.06,9.999e-05,2]
[348126795,1736343043795,-500.0,9.999e-05,2]
[348126796,1736343043804,-500.0,9.999e-05,2]
[348126798,1736343043814,-500.0,9.999e-05,2]
[348126800,1736343043826,-500.0,9.999e-05,2]
[348126802,1736343043836,-500.0,9.999e-05,2]
[348126804,1736343043846,-500.0,9.999e-05,2]
[348126806,1736343043855,-504.47,9.999e-05,2]
[348126807,1736343043865,-500.0,9.999e-05,2]
[348126809,1736343043875,-500.0,9.999e-05,2]
[348126810,1736343043884,-500.0,9.999e-05,2]
[348126812,1736343043894,-534.71,9.999e-05,2]
[348126814,1736343043903,-554.87,9.999e-05,2]
[348126815,1736343043915,-500.0,9.999e-05,2]
[348126817,1736343043925,-500.0,9.999e-05,2]
[348126819,1736343043935,-500.0,9.999e-05,2]
[348126821,1736343043944,-500.0,9.999e-05,2]
[348126822,1736343043953,-500.0,9.999e-05,2]
[348126824,1736343043963,-500.0,9.999e-05,2]
[348126826,1736343043973,-500.0,9.999e-05,2]
[348126827,1736343043983,-500.0,9.999e-05,2]
[348126829,1736343043993,-500.0,9.999e-05,2]
[348126831,1736343044002,-500.0,9.999e-05,2]
[348126833,1736343044012,-672.96,9.999e-05,2]
[348126834,1736343044021,-500.0,9.999e-05,2]
[348126836,1736343044030,-500.0,9.999e-05,2]
[348126838,1736343044042,-500.0,9.999e-05,2]
[348126839,1736343044051,-500.0,9.999e-05,2]
[348126841,1736343044060,-500.0,9.999e-05,2]
[348126843,1736343044070,-513.8,9.999e-05,2]
[348126845,1736343044079,-589.08,9.999e-05,2]
[348126846,1736343044089,-280.2460035,9.999e-05,2]
[348126848,1736343044098,-500.0,9.999e-05,2]
[348126850,1736343044107,-9157.70826798,9.999e-05,4]
[348126851,1736343044116,-500.0,9.999e-05,2]
[348126853,1736343044125,-543.49541861,9.999e-05,2]
[348126855,1736343044134,-500.0,9.999e-05,2]
[348126857,1736343044145,-500.0,9.999e-05,2]
[348126858,1736343044155,-620.48661865,9.999e-05,2]
[348126860,1736343044168,-500.0,9.999e-05,2]
[348126862,1736343044177,-500.0,9.999e-05,2]
[348126864,1736343044187,-500.0,9.999e-05,2]
[348126866,1736343044196,-500.0,9.999e-05,2]
[348126867,1736343044206,-500.0,9.999e-05,2]
[348126869,1736343044215,-500.0,9.999e-05,2]
[348126871,1736343044225,-500.0,9.999e-05,2]
[348126873,1736343044235,-500.0,9.999e-05,2]
[348126875,1736343044244,-500.0,9.999e-05,2]
[348126876,1736343044253,-500.0,9.999e-05,2]
[348126878,1736343044262,-500.0,9.999e-05,2]
[348126880,1736343044272,-500.0,9.999e-05,2]
[348126893,1736343044430,-500.0,9.999e-05,2]
[348126895,1736343044441,-500.0,9.999e-05,2]